bitfinex/quotes_ETHUSD_20240924
["timestamp","ask_amount","ask_price","bid_price","bid_amount"]
[1727188729596,1.617981,2609.0,2608.4,3.83375]
[1727188729597,2.1630631,2609.0,2608.4,3.83375]
[1727188729798,2.1630631,2609.0,2608.2,3.83401]
[1727188730037,3.83305,2608.9,2608.2,3.83396]
[1727188730240,3.83305,2608.9,2608.0,3.83428]
[1727188730241,3.83341,2608.7,2608.0,3.83425]
[1727188730536,3.83289,2609.0,2607.8,3.83453]
[1727188730744,3.83357,2608.6,2607.9,3.83446]
[1727188730963,3.83377,2608.4,2607.7,3.83465]
[1727188731251,3.83283,2609.1,2607.4,4.5593]
[1727188731252,3.83347,2608.6,2607.9,3.83447]
[1727188731460,3.83347,2608.6,2608.2,3.83396]
[1727188731461,0.383347,2608.6,2608.2,3.83396]
[1727188731750,0.383347,2608.6,2608.3,3.8339]
[1727188731910,1.6649,2608.7,2608.0,3.83429]
[1727188732096,3.83355,2608.6,2608.0,3.83429]
[1727188732297,1.6649,2608.7,2607.7,3.0]
[1727188732495,1.6649,2608.7,2608.4,3.83373]
[1727188732931,1.6649,2608.7,2608.4,3.83362]
[1727188733134,1.6649,2608.7,2608.2,3.83396]
[1727188733337,4.383308,2608.6,2608.0,6.83428]
[1727188733535,4.383308,2608.6,2607.4,1.5593]
[1727188733536,3.83399,2608.3,2607.7,3.83474]
[1727188733724,3.83387,2608.4,2607.6,3.83489]
[1727188734034,3.83387,2608.4,2607.8,3.83456]
[1727188734235,3.83404,2608.3,2607.6,7.66972]
[1727188734452,5.49896,2608.2,2607.7,3.83472]
[1727188734636,5.49896,2608.2,2607.0,1.5593]
[1727188734637,1.6649,2608.2,2607.3,3.83532]
[1727188734952,1.6649,2608.5,2607.6,0.55]
[1727188735113,1.6649,2608.5,2608.1,3.83418]
[1727188735501,1.6649,2608.5,2608.3,3.8339]
[1727188735702,1.6649,2608.5,2608.1,3.83418]
[1727188735909,1.6649,2608.5,2608.2,3.83397]
[1727188736126,1.6649,2608.5,2608.1,3.83411]
[1727188736543,6.048382,2608.5,2607.9,3.83441]
[1727188736842,2.214732,2608.5,2608.1,3.8342]
[1727188737043,1.6649,2608.5,2608.2,3.83397]
[1727188737243,1.6649,2608.5,2608.3,3.83383]
[1727188737548,1.6649,2608.5,2608.2,3.83396]
[1727188737902,1.6649,2608.5,2608.0,7.66851]
[1727188738303,2.214723,2608.5,2608.0,3.83422]
[1727188738531,2.214723,2608.5,2607.8,3.83459]
[1727188738532,3.83392,2608.3,2607.8,3.83459]
[1727188738708,6.048423,2608.5,2607.9,3.83447]
[1727188738928,5.4986,2608.5,2607.8,3.83459]
[1727188739240,3.83384,2608.4,2607.9,3.83449]
[1727188739449,6.04846,2608.5,2607.9,3.83449]
[1727188739618,3.83392,2608.3,2607.8,7.66913]
[1727188739832,0.988238,2608.3,2607.9,3.8344]
[1727188740029,9.88219,2608.5,2607.9,3.8344]
[1727188740258,2.21476,2608.5,2607.8,3.83454]
[1727188740465,5.49861,2608.5,2608.0,3.83432]
[1727188740663,1.6649,2608.5,2607.9,0.5304793]
[1727188740865,1.6649,2608.5,2607.5,3.83498]
[1727188740866,3.83422,2608.1,2607.5,3.83498]
[1727188741024,1.6649,2608.5,2607.8,3.83464]
[1727188741025,3.83381,2608.4,2607.8,3.83464]
[1727188741220,1.5541,2608.1,2607.6,0.5304793]
[1727188741470,3.83451,2607.9,2607.0,5.9255093]
[1727188741644,3.83437,2608.0,2607.5,3.83498]
[1727188741841,3.83443,2608.0,2607.5,4.3654593]
[1727188742044,1.5541,2608.1,2607.6,0.5304793]
[1727188742357,1.5541,2608.4,2607.8,3.83456]
[1727188742566,1.5541,2608.4,2607.8,0.5304793]
[1727188742735,3.83417,2608.2,2607.7,3.83477]
[1727188742936,3.83473,2607.8,2607.2,3.83542]
[1727188743249,3.83473,2607.8,2607.0,3.83575]
[1727188743250,3.0,2608.0,2607.0,0.5304793]
[1727188743435,1.5541,2607.4,2606.9,3.83586]
[1727188743638,1.5541,2607.4,2606.9,4.3663393]
[1727188744047,1.5541,2607.4,2607.0,0.5304793]
[1727188745365,1.5541,2607.8,2607.1,3.83562]
[1727188745535,1.5541,2607.8,2607.3,3.83524]
[1727188745741,1.5541,2607.8,2607.4,3.83523]
[1727188746151,1.5541,2607.8,2607.3,3.83524]
[1727188746384,1.5541,2607.8,2607.1,3.83562]
[1727188746385,5.38875,2607.8,2607.1,3.83559]
[1727188746521,5.38875,2607.8,2606.9,5.4817]
[1727188746522,2.476431,2607.8,2606.9,4.6458]
[1727188746723,1.5541,2607.8,2607.4,3.83521]
[1727188746957,3.83398,2608.3,2607.5,3.83506]
[1727188747228,16.16898006,2609.1,2607.5,4.3654893]
[1727188747229,1.5541,2608.2,2607.5,4.3654893]
[1727188747445,1.5541,2608.2,2607.2,3.0]
[1727188747446,1.5541,2608.2,2607.2,3.5304793]
[1727188747648,1.5541,2608.2,2607.7,3.83465]
[1727188748075,3.8343,2608.1,2607.5,0.5304793]
[1727188748389,3.83461,2607.9,2607.4,3.0]
[1727188748607,3.83444,2608.0,2607.1,3.83562]
[1727188748608,5.38875,2607.8,2607.2,3.0]
[1727188748752,4.373755,2607.7,2607.2,3.0]
[1727188749155,0.538875,2607.7,2606.8,0.5304793]
[1727188749355,0.538875,2607.7,2607.3,3.83536]
[1727188749578,1.5541,2607.8,2607.3,3.83536]
[1727188749980,1.5541,2607.8,2607.5,3.835]
[1727188750182,1.5541,2608.1,2607.5,3.83501]
[1727188750498,1.5541,2608.1,2607.5,3.83503]
[1727188750681,1.5541,2608.1,2608.0,3.83435]
[1727188750860,3.8332,2608.8,2608.0,3.83435]
[1727188750861,1.5541,2608.5,2608.1,3.83411]
[1727188751064,1.5541,2608.5,2607.8,3.83451]
[1727188751261,2.092858,2608.5,2608.0,3.83431]
[1727188751682,3.83414,2608.2,2607.6,3.83485]
[1727188751892,1.5541,2608.1,2607.5,3.0]
[1727188752096,3.8347,2607.8,2607.1,3.83556]
[1727188752401,3.83484,2607.7,2607.1,3.83556]
[1727188752566,3.8347,2607.8,2606.8,1.6458]
[1727188752567,7.66956,2607.8,2606.8,1.6458]
[1727188752763,3.96898006,2607.8,2606.7,3.83615]
[1727188752994,3.83572,2607.1,2606.5,3.83646]
[1727188753152,3.83548,2607.3,2606.5,3.83646]
[1727188753353,7.67116,2607.2,2606.5,3.83646]
[1727188753553,3.83553,2607.2,2606.5,3.83646]
[1727188753758,3.83533,2607.4,2606.5,3.83646]
[1727188754096,3.83501,2607.6,2606.9,3.83588]
[1727188754269,3.83483,2607.7,2606.9,3.83588]
[1727188754750,3.83505,2607.6,2606.9,4.34391429]
[1727188754949,3.83472,2607.8,2607.0,0.50804429]
[1727188755186,1.5541,2607.7,2607.1,3.83557]
[1727188755353,6.16884201,2608.0,2607.1,1.6458]
[1727188755553,3.83458,2607.9,2607.2,3.83543]
[1727188756053,3.83474,2607.8,2607.2,3.83543]
[1727188756253,3.83488,2607.7,2607.1,6.83563]
[1727188756450,1.5541,2608.0,2607.1,3.0]
[1727188756674,3.8348,2607.7,2607.2,3.83552]
[1727188756875,1.5541,2608.0,2607.5,3.83506]
[1727188757081,1.5541,2608.0,2607.5,3.83507]
[1727188757460,1.5541,2608.0,2607.3,3.83531]
[1727188757461,1.5541,2608.0,2607.4,3.0]
[1727188757658,5.38847,2608.0,2607.4,3.0]
[1727188757998,3.83466,2607.8,2607.2,6.83552]
[1727188758154,2.476373,2608.0,2607.4,7.67036]
[1727188758155,1.5541,2608.0,2607.4,7.67036]
[1727188758352,1.5541,2608.0,2607.6,3.83485]
[1727188758555,1.5541,2608.0,2607.1,3.0]
[1727188758764,1.5541,2608.4,2607.9,3.83439]
[1727188759093,1.5541,2608.4,2607.7,3.0]
[1727188759403,1.5541,2607.9,2607.5,3.0]
[1727188759609,1.5541,2607.9,2607.5,3.83506]
[1727188759805,1.5541,2607.9,2607.5,7.67007]
[1727188759977,1.5541,2607.9,2607.3,3.0]
[1727188760304,4.373526,2607.8,2607.2,3.83552]
[1727188760524,3.83468,2607.8,2607.2,3.83552]
[1727188760801,1.5541,2607.9,2607.4,3.83521]
[1727188761007,1.5541,2607.9,2607.4,3.83514]
[1727188761167,1.5541,2607.9,2607.2,0.50804429]
[1727188761377,1.5541,2608.2,2607.7,3.8347]
[1727188762109,1.5541,2608.2,2607.8,3.83455]
[1727188762267,1.5541,2608.2,2607.9,3.83449]
[1727188762474,1.5541,2608.2,2607.7,3.8347]
[1727188762672,1.5541,2608.6,2608.0,3.83425]
[1727188762983,3.8337,2608.5,2607.9,3.0]
[1727188763186,5.38758,2608.6,2607.9,6.83447]
[1727188763589,3.83371,2608.5,2607.9,3.0]
[1727188764174,3.83371,2608.5,2607.4,0.50804429]
[1727188764175,0.922129,2608.5,2607.6,3.83487]
[1727188764400,3.83406,2608.2,2607.4,3.83514]
[1727188764613,3.83406,2608.2,2607.6,3.0]
[1727188764814,7.66765,2608.4,2607.7,6.83478]
[1727188765016,7.66765,2608.4,2607.7,3.0]
[1727188765017,3.83432,2608.1,2607.7,3.0]
[1727188765213,1.5541,2608.0,2607.6,3.0]
[1727188765530,3.83447,2608.0,2607.4,3.83523]
[1727188765824,3.83447,2608.0,2607.3,3.83527]
[1727188766130,3.83447,2608.0,2607.4,3.0]
[1727188766326,3.83447,2608.0,2607.0,0.50804429]
[1727188766327,3.83511,2607.5,2607.0,0.50804429]
[1727188766476,3.83568,2607.1,2606.3,4.34479429]
[1727188766826,1.5541,2607.3,2606.6,3.8364]
[1727188767223,5.38955,2607.3,2606.6,3.83641]
[1727188767520,1.5541,2607.3,2606.9,3.83585]
[1727188767719,1.5541,2607.6,2607.0,3.83575]
[1727188767925,5.38914,2607.6,2607.1,3.0]
[1727188768221,2.093014,2607.6,2606.6,3.8363]
[1727188768373,3.83561,2607.2,2606.6,7.67262]
[1727188768716,3.83561,2607.2,2606.6,3.8363]
[1727188768875,1.5541,2607.6,2606.3,1.6458]
[1727188769078,1.5541,2607.6,2607.2,3.83551]
[1727188769522,6.16093149,2608.3,2607.3,3.0]
[1727188769705,3.83421,2608.1,2607.4,3.83515]
[1727188769882,3.83421,2608.1,2607.5,3.83508]
[1727188770514,3.83437,2608.0,2607.3,3.83532]
[1727188770709,0.57127007,2608.1,2607.3,3.0]
[1727188770912,0.57127007,2608.1,2607.0,3.0]
[1727188770913,3.83515,2607.5,2607.0,3.0]
[1727188771123,3.83508,2607.6,2606.9,3.8359]
[1727188771421,3.83508,2607.6,2607.0,3.83573]
[1727188771621,1.6064,2607.7,2607.1,3.8356]
[1727188771825,1.6064,2607.7,2607.0,3.83573]
[1727188771984,1.6064,2607.7,2607.2,3.83552]
[1727188772178,5.4412,2607.7,2607.0,7.67146]
[1727188772387,3.83521,2607.5,2606.9,3.83588]
[1727188772615,3.83539,2607.3,2606.7,6.8362]
[1727188772829,3.83513,2607.5,2606.4,1.6453]
[1727188773027,3.83513,2607.5,2606.9,3.83585]
[1727188773733,3.83527,2607.4,2606.9,3.83585]
[1727188773941,3.83513,2607.5,2606.9,3.83585]
[1727188774117,3.8353,2607.4,2606.9,3.83585]
[1727188774325,3.83513,2607.5,2606.7,3.83617]
[1727188774326,3.83546,2607.3,2606.7,3.83617]
[1727188775052,3.83513,2607.5,2606.9,3.83589]
[1727188775341,1.6064,2607.7,2607.2,3.83551]
[1727188775634,5.44121,2607.7,2607.2,3.83551]
[1727188775990,1.6064,2607.7,2607.2,7.67093]
[1727188776228,1.6064,2607.7,2607.3,3.83536]
[1727188776428,1.6064,2607.7,2607.2,3.83542]
[1727188776429,1.6064,2607.7,2607.4,3.83523]
[1727188776798,1.6064,2608.1,2607.2,0.50804429]
[1727188777001,1.6064,2608.5,2608.0,3.83433]
[1727188777523,1.6064,2608.5,2608.3,3.83386]
[1727188777728,5.43963,2608.8,2608.3,3.83386]
[1727188777940,5.43963,2608.8,2608.4,3.83375]
[1727188777941,0.46061215,2608.7,2608.4,3.83375]
[1727188778238,1.6064,2608.8,2608.3,3.83386]
[1727188778399,1.6064,2608.8,2608.3,7.66768]
[1727188778840,1.6064,2608.8,2608.3,3.83382]
[1727188779044,1.6064,2608.8,2608.2,3.83396]
[1727188779198,1.6064,2608.8,2608.1,3.83413]
[1727188779397,5.43966,2608.8,2608.2,3.83404]
[1727188779603,5.983626,2608.8,2608.2,3.83404]
[1727188780038,5.983626,2608.8,2608.1,3.83412]
[1727188780246,1.6064,2608.8,2608.3,3.83387]
[1727188780450,1.6064,2608.8,2608.4,3.8337]
[1727188780596,3.83295,2609.0,2608.5,3.83359]
[1727188780954,1.6064,2609.1,2607.9,5.98779429]
[1727188780955,1.6064,2609.1,2608.7,3.83323]
[1727188781114,0.0447868,2609.0,2608.7,3.83323]
[1727188781311,0.0447868,2609.0,2608.9,6.83303]
[1727188781911,0.0447868,2609.0,2608.9,7.38303]
[1727188782303,0.0447868,2609.0,2608.9,6.83303]
[1727188783118,0.0447868,2609.0,2608.9,3.83303]
[1727188783639,0.0447868,2609.0,2608.8,3.83317]
[1727188783942,0.0447868,2609.0,2608.8,3.83305]
[1727188784240,0.0447868,2609.0,2608.9,3.83303]
[1727188784444,0.0447868,2609.0,2608.6,6.83342]
[1727188784647,0.0447868,2609.0,2608.6,6.83338]
[1727188784835,0.0447868,2609.0,2608.6,3.0]
[1727188785343,0.0447868,2609.0,2608.5,3.0]
[1727188785549,3.8776868,2609.0,2608.5,3.0]
[1727188785746,0.0447868,2609.0,2608.5,3.0]
[1727188785950,0.0447868,2609.0,2608.8,3.83316]
[1727188786105,0.0447868,2609.0,2608.9,3.83303]
[1727188786633,0.0447868,2609.0,2608.9,6.83303]
[1727188787031,5.60366686,2609.0,2607.9,1.5487]
[1727188787368,5.60366686,2609.0,2607.6,3.83486]
[1727188787369,3.83418,2608.2,2607.6,3.83486]
[1727188787531,0.09586267,2608.1,2607.6,3.83486]
[1727188787864,7.80236006,2608.7,2607.4,3.83515]
[1727188787865,3.83398,2608.3,2607.4,3.83514]
[1727188788030,3.83447,2608.0,2607.3,1.5487]
[1727188788231,3.83425,2608.1,2606.9,0.51562762]
[1727188788232,3.83425,2608.1,2607.0,1.5487]
[1727188788430,3.83436,2608.0,2607.4,3.83514]
[1727188788627,3.8345,2607.9,2607.4,3.83514]
[1727188788849,3.8345,2607.9,2607.3,0.51562762]
[1727188789041,3.83437,2608.0,2607.3,0.51562762]
[1727188789255,4.60628149,2608.7,2606.8,3.83609]
[1727188789256,3.8347,2607.8,2606.8,3.83609]
[1727188789439,1.5899,2607.9,2607.4,3.83515]
[1727188789961,5.42442,2607.9,2607.4,3.83515]
[1727188790257,3.83469,2607.8,2607.0,3.83574]
[1727188790456,3.83482,2607.7,2606.7,2.06432762]
[1727188790618,3.83495,2607.6,2607.1,3.0]
[1727188790819,4.218445,2607.6,2606.9,3.83587]
[1727188791054,3.83495,2607.6,2607.0,3.83571]
[1727188791647,3.83471,2607.8,2607.1,3.83558]
[1727188792140,3.83496,2607.6,2607.0,0.51562762]
[1727188792347,1.5899,2607.3,2606.7,3.83614]
[1727188792587,3.83574,2607.1,2606.5,3.83654]
[1727188792868,1.5899,2607.3,2606.8,0.51562762]
[1727188793724,1.5899,2607.3,2606.8,4.35162762]
[1727188794126,1.5899,2607.3,2606.9,3.83596]
[1727188794621,5.4253,2607.3,2606.8,3.8361]
[1727188794857,5.4253,2607.3,2606.7,3.83616]
[1727188795065,5.4253,2607.3,2606.8,3.83607]
[1727188795241,5.4253,2607.3,2606.7,7.67234]
[1727188795436,1.5899,2607.3,2606.8,3.83603]
[1727188795782,6.96898006,2608.0,2606.6,3.0]
[1727188795783,1.5899,2607.7,2606.6,3.0]
[1727188796067,3.8351,2607.5,2606.9,3.83587]
[1727188796280,3.8351,2607.5,2606.9,7.67174]
[1727188796484,3.8351,2607.5,2606.9,3.83587]
[1727188796647,3.8351,2607.5,2606.9,7.67174]
[1727188796853,3.8351,2607.5,2606.9,3.83583]
[1727188797170,3.83524,2607.4,2606.9,3.83583]
[1727188797336,3.8351,2607.5,2607.0,3.83576]
[1727188797538,3.83509,2607.5,2606.9,3.83583]
[1727188797870,3.83509,2607.5,2607.0,3.83572]
[1727188798242,5.42477,2607.7,2606.9,3.83583]
[1727188798571,3.83494,2607.6,2607.1,3.83565]
[1727188798787,5.42477,2607.7,2607.1,3.8356]
[1727188798944,5.42477,2607.7,2606.9,3.83588]
[1727188799145,3.8351,2607.5,2607.0,3.83581]
[1727188799351,7.67032,2607.5,2606.9,3.83588]
[1727188799783,3.83526,2607.4,2606.9,3.83588]
[1727188800020,3.8351,2607.5,2606.9,3.83588]
[1727188800198,3.8351,2607.5,2606.9,7.67173]
[1727188800399,4.761181,2607.5,2606.7,3.83622]
[1727188800699,1.5899,2607.2,2606.8,3.83605]
[1727188800907,1.5899,2607.2,2606.9,3.83585]
[1727188801107,5.42494,2607.6,2606.9,3.0]
[1727188801254,3.83523,2607.4,2606.9,6.83594]
[1727188801954,5.42494,2607.6,2606.9,6.83594]
[1727188802257,1.5842,2608.0,2607.6,3.83485]
[1727188802458,1.5842,2608.0,2607.4,1.5113]
[1727188802752,1.5842,2608.0,2607.3,6.8353]
[1727188803096,1.5842,2608.0,2607.5,3.83507]
[1727188803817,1.5842,2608.3,2607.7,3.83478]
[1727188804016,1.5842,2608.3,2607.8,3.83463]
[1727188804506,1.5842,2608.3,2607.8,3.83455]
[1727188804718,5.41821,2608.3,2607.8,3.0]
[1727188804922,2.126021,2608.3,2607.7,3.0]
[1727188805070,7.66881,2608.0,2607.5,3.0]
[1727188805269,3.8345,2607.9,2607.5,3.0]
[1727188805469,3.83436,2608.0,2607.4,3.83515]
[1727188806024,3.83436,2608.0,2607.5,3.83505]
[1727188806323,3.83457,2607.9,2607.3,5.02692762]
[1727188806470,1.5842,2607.6,2607.0,5.34699]
[1727188806672,3.96898006,2608.2,2607.2,3.8354]
[1727188806673,3.8346,2607.9,2607.2,3.8354]
[1727188806903,5.4188,2607.9,2607.2,4.35102762]
[1727188807110,5.4188,2607.9,2607.3,3.83528]
[1727188807426,5.55318006,2607.9,2606.9,3.83588]
[1727188807707,5.55318006,2607.9,2606.8,5.34735]
[1727188807708,3.83524,2607.4,2606.8,5.34732]
[1727188807911,4.602258,2607.4,2606.8,5.34732]
[1727188808206,3.83494,2607.6,2606.8,5.34732]
[1727188808207,3.83494,2607.6,2606.8,5.34735]
[1727188808575,3.8351,2607.5,2606.9,3.83595]
[1727188809277,3.83494,2607.6,2606.9,3.83595]
[1727188809278,3.83524,2607.4,2607.0,3.0]
[1727188809505,0.383524,2607.3,2607.0,3.0]
[1727188809819,3.83509,2607.5,2607.0,3.0]
[1727188810115,3.83494,2607.6,2607.0,3.0]
[1727188810612,4.37661,2607.8,2607.2,3.83544]
[1727188810969,0.54188,2607.8,2607.0,3.83578]
[1727188811176,3.83502,2607.6,2607.0,3.83578]
[1727188811384,3.83502,2607.6,2607.0,7.67151]
[1727188811579,3.83469,2607.8,2607.2,3.83552]
[1727188812526,3.83497,2607.6,2607.0,3.83573]
[1727188812718,3.8351,2607.5,2607.1,3.0]
[1727188812933,3.8351,2607.5,2607.0,3.0]
[1727188812934,0.48113671,2607.5,2607.0,3.0]
[1727188813078,3.83504,2607.6,2607.0,3.83569]
[1727188813282,3.83494,2607.6,2607.0,3.83568]
[1727188813483,3.83516,2607.5,2607.0,3.83568]
[1727188813717,3.83527,2607.4,2606.9,6.83591]
[1727188814089,3.83562,2607.2,2606.7,3.83625]
[1727188814292,5.4196,2607.3,2606.8,3.83611]
[1727188814528,3.83564,2607.2,2606.6,3.83633]
[1727188814738,1.5842,2607.3,2606.4,3.8367]
[1727188814739,3.83568,2607.1,2606.4,3.8367]
[1727188814886,7.80564006,2606.5,2606.0,0.003338]
[1727188815234,5.42135,2606.1,2606.0,0.003338]
[1727188815381,1.5842,2606.1,2606.0,0.003338]
[1727188815587,5.42135,2606.1,2606.0,0.003338]
[1727188815785,6.69878401,2606.1,2606.0,0.003338]
[1727188815995,6.69878401,2606.1,2605.0,0.50433576]
[1727188815996,5.86163401,2606.1,2605.0,0.0481248]
[1727188816224,3.83763,2605.8,2605.0,0.0481248]
[1727188816423,3.838,2605.6,2605.0,3.8868548]
[1727188816605,3.83775,2605.7,2605.1,3.83861]
[1727188816806,3.83798,2605.6,2605.0,0.47517851]
[1727188817011,3.83789,2605.6,2605.0,4.31382851]
[1727188817237,3.83789,2605.6,2605.1,3.8386]
[1727188817522,3.83789,2605.6,2605.0,3.47517851]
[1727188817523,2.86163401,2606.1,2605.0,3.47517851]
[1727188817680,3.83784,2605.7,2605.0,3.47517851]
[1727188817885,3.83762,2605.8,2605.1,0.42705371]
[1727188818426,3.83751,2605.9,2605.2,3.83837]
[1727188818595,4.48182794,2605.9,2605.1,0.42705371]
[1727188818818,4.48182794,2605.9,2605.2,0.42705371]
[1727188819035,4.48182794,2605.9,2605.2,4.26549371]
[1727188819330,4.39247973,2605.8,2605.2,0.42705371]
[1727188819542,0.55485973,2605.8,2605.3,3.83822]
[1727188819689,0.55485973,2605.8,2605.2,0.42705371]
[1727188819690,3.83775,2605.7,2605.2,0.42705371]
[1727188819891,4.06492967,2605.6,2605.0,0.0481248]
[1727188820135,3.83862,2605.1,2605.0,0.0481248]
[1727188820737,5.37752,2605.1,2605.0,0.0481248]
[1727188820951,6.02350885,2605.1,2605.0,0.0481248]
[1727188821267,6.02350885,2605.1,2604.0,4.26625778]
[1727188821268,6.02350885,2605.1,2604.0,0.0481248]
[1727188821269,7.48461462,2605.1,2604.0,0.0481248]
[1727188821397,3.84009,2604.1,2604.0,0.0481248]
[1727188822143,1.5389,2604.2,2604.0,0.0481248]
[1727188822503,5.37834,2604.6,2604.0,3.8883548]
[1727188822718,0.537834,2604.5,2604.0,3.8883548]
[1727188823238,2.68425947,2605.0,2604.0,5.3886948]
[1727188823391,3.83923,2604.7,2604.1,3.84]
[1727188823596,5.50788006,2605.0,2604.0,3.8882948]
[1727188823851,3.83923,2604.7,2604.1,3.84008]
[1727188824012,9.34677006,2605.0,2604.2,3.83994]
[1727188824214,9.89755807,2605.0,2604.2,3.83994]
[1727188824542,9.89755807,2605.0,2604.1,3.84007]
[1727188824543,3.83937,2604.6,2604.1,3.84007]
[1727188824710,5.92851801,2605.0,2604.2,3.83987]
[1727188825037,5.92851801,2605.0,2604.0,0.0481248]
[1727188825038,5.37775,2605.0,2604.3,7.6794]
[1727188825342,5.37775,2605.0,2604.3,3.83969]
[1727188825635,3.83923,2604.7,2604.2,3.83984]
[1727188825935,1.5389,2605.0,2604.6,3.83933]
[1727188826241,1.5389,2605.0,2604.7,3.83919]
[1727188826396,1.5389,2605.5,2604.9,3.83887]
[1727188826603,1.5389,2605.5,2604.8,3.0]
[1727188826843,3.83835,2605.3,2604.8,3.0]
[1727188826999,3.83851,2605.2,2604.5,7.67881]
[1727188827196,7.67709,2605.2,2604.5,7.67881]
[1727188827552,3.83878,2605.0,2604.4,3.83962]
[1727188827754,5.00311701,2605.2,2604.5,3.8394]
[1727188828050,5.37707,2605.5,2604.9,3.83883]
[1727188828245,5.37707,2605.5,2604.7,3.83916]
[1727188828246,3.83837,2605.3,2604.7,3.83916]
[1727188828551,1.5389,2605.5,2604.7,3.83916]
[1727188828552,5.37694,2605.5,2604.9,3.83881]
[1727188828843,1.5389,2605.5,2605.1,3.83848]
[1727188829263,1.5389,2605.5,2604.9,3.83885]
[1727188829414,1.5389,2605.5,2605.0,3.83874]
[1727188829748,3.83792,2605.6,2604.9,3.83885]
[1727188829749,1.5389,2605.8,2605.3,3.83822]
[1727188829962,0.729,2606.1,2605.5,3.83792]
[1727188829963,5.37606,2606.1,2605.5,3.83792]
[1727188830254,5.37618,2606.1,2605.5,3.83792]
[1727188830524,13.18244006,2606.1,2605.5,3.83792]
[1727188830826,10.66340407,2606.1,2605.6,3.83786]
[1727188831034,1.5389,2606.1,2605.3,3.83828]
[1727188831237,1.5389,2606.1,2605.5,3.83798]
[1727188831532,5.37608,2606.1,2605.3,3.83827]
[1727188831734,9.88266806,2606.1,2605.3,3.83827]
[1727188832030,9.88266806,2606.1,2605.1,3.0]
[1727188832031,3.83748,2605.9,2605.2,3.0]
[1727188832232,3.83814,2605.5,2604.9,3.83886]
[1727188832419,3.83851,2605.2,2604.6,1.5017]
[1727188832614,1.5563,2605.4,2604.7,3.83912]
[1727188833000,1.5563,2605.4,2604.7,3.83914]
[1727188833219,3.83835,2605.3,2604.7,3.83914]
[1727188833402,3.83857,2605.2,2604.5,3.8394]
[1727188833602,3.96898006,2605.2,2604.3,3.83974]
[1727188833809,5.39553,2604.7,2604.1,3.84006]
[1727188834132,1.5563,2604.7,2604.1,3.83997]
[1727188834432,3.93490627,2604.9,2604.3,3.83975]
[1727188834603,3.83807,2605.5,2604.0,0.0481248]
[1727188834604,3.96898006,2604.7,2604.0,0.0481248]
[1727188834802,3.8396,2604.5,2604.0,0.0481248]
[1727188835627,3.96898006,2604.7,2604.1,3.84008]
[1727188835845,0.93642601,2604.7,2604.1,3.84008]
[1727188836124,0.93642601,2604.7,2604.2,3.83991]
[1727188836333,1.5563,2604.8,2604.5,3.83949]
[1727188836556,3.83845,2605.3,2604.6,3.83933]
[1727188836707,3.83845,2605.3,2604.7,3.83917]
[1727188836912,3.8385,2605.2,2604.5,3.83941]
[1727188837115,5.395,2605.1,2604.5,3.83941]
[1727188837342,5.39502,2605.1,2604.5,3.83941]
[1727188837543,1.5563,2605.1,2604.6,3.83934]
[1727188837921,5.39492,2605.1,2604.5,3.83941]
[1727188838122,4.39129801,2605.0,2604.3,3.83973]
[1727188838317,3.83896,2604.9,2604.3,7.67943]
[1727188838556,3.83896,2604.9,2604.3,3.8397]
[1727188838855,4.8176158,2604.9,2604.3,3.8397]
[1727188839023,3.83929,2604.7,2604.1,3.84005]
[1727188839210,3.83929,2604.7,2604.2,3.83994]
[1727188839410,0.9786558,2604.9,2604.0,0.0481248]
[1727188839650,1.5563,2605.1,2604.6,3.83927]
[1727188839946,1.5563,2605.1,2604.0,0.0481248]
[1727188840147,1.5563,2605.1,2604.7,3.83912]
[1727188840312,1.5563,2605.1,2604.8,3.83893]
[1727188840512,1.5563,2605.1,2604.7,3.83912]
[1727188840714,2.095776,2605.1,2604.5,3.83946]
[1727188840936,5.39502,2605.1,2604.5,7.67885]
[1727188841136,5.39502,2605.1,2604.6,3.83933]
[1727188841565,5.39502,2605.1,2604.5,3.8672036]
[1727188841767,6.318359,2605.1,2604.5,7.7066136]
[1727188841971,6.318359,2605.1,2604.5,3.8672036]
[1727188842168,2.479639,2605.1,2604.5,0.0278136]
[1727188842462,3.83921,2604.8,2604.5,0.0278136]
[1727188842690,3.83899,2604.9,2604.5,0.0278136]
[1727188843030,7.67801,2604.9,2604.5,0.0278136]
[1727188843455,4.0868539,2605.0,2604.5,0.0278136]
[1727188843640,0.56431539,2604.9,2604.5,0.0278136]
[1727188843964,0.2479639,2605.0,2604.7,3.83921]
[1727188844278,1.5563,2605.5,2605.1,3.83859]
[1727188844565,1.5563,2605.5,2604.6,1.5017]
[1727188844770,1.5563,2605.5,2605.1,3.83856]
[1727188844974,1.5563,2605.5,2604.9,3.83877]
[1727188845127,1.5563,2605.5,2605.1,3.83861]
[1727188845474,10.28652506,2605.5,2604.7,6.83914]
[1727188845679,10.28652506,2605.5,2604.7,3.0]
[1727188845680,3.83901,2604.9,2604.7,3.0]
[1727188845822,3.83901,2604.9,2604.5,0.0278136]
[1727188845823,3.83906,2604.8,2604.5,0.0278136]
[1727188846030,3.83936,2604.6,2604.5,0.0278136]
[1727188846273,3.93535767,2604.6,2604.5,0.0278136]
[1727188846467,3.83936,2604.6,2604.5,0.0278136]
[1727188847244,5.46466,2604.6,2604.5,0.0278136]
[1727188847539,7.38993487,2604.6,2604.5,0.0278136]
[1727188849670,6.83993487,2604.6,2604.5,0.0278136]
[1727188851470,6.83993487,2604.6,2603.7,0.0373608]
[1727188851471,3.96898006,2604.0,2603.7,0.0373608]
[1727188851671,5.46584,2603.8,2603.7,0.0373608]